bitfinex/quotes_ETHUSD_20241108
["timestamp","ask_amount","ask_price","bid_price","bid_amount"]
[1731024190667,0.814,2902.7,2900.7,4.39410953]
[1731024190814,0.814,2902.5,2900.7,5.17716106]
[1731024191021,0.55,2902.8,2900.8,0.59955611]
[1731024191022,0.814,2902.3,2900.8,0.59955611]
[1731024191428,0.814,2902.1,2900.3,4.39410953]
[1731024191613,0.7954,2901.9,2900.3,4.39410953]
[1731024191814,0.7954,2901.7,2900.0,0.78305153]
[1731024192216,0.7954,2901.3,2900.1,0.51771611]
[1731024192383,0.7954,2901.1,2899.4,0.7984]
[1731024192521,0.7954,2900.9,2899.2,0.41119252]
[1731024192873,0.55,2901.4,2899.2,0.41119252]
[1731024192874,0.91429086,2900.8,2899.3,0.48053021]
[1731024193164,0.55,2900.5,2899.3,0.48053021]
[1731024193320,0.55,2900.5,2899.2,0.41119252]
[1731024193321,0.91430562,2900.4,2899.2,0.41119252]
[1731024193642,0.8281,2900.4,2899.3,0.0689645]
[1731024193843,0.8281,2900.4,2899.3,0.41119252]
[1731024194793,0.8281,2900.4,2899.6,3.0]
[1731024195083,0.7762,2901.3,2900.0,3.0]
[1731024196169,0.7762,2901.3,2900.1,0.06893204]
[1731024196359,0.7762,2901.3,2900.2,0.3068932]
[1731024197504,0.7762,2901.3,2899.7,0.41119252]
[1731024197651,0.63617779,2901.2,2899.5,4.39410953]
[1731024197852,0.7538,2901.1,2899.3,0.78305153]
[1731024198053,0.7538,2901.0,2899.4,0.06894597]
[1731024198349,0.7538,2901.0,2899.5,0.78305153]
[1731024198562,0.7538,2901.0,2899.6,0.06894592]
[1731024198857,0.7538,2901.0,2899.7,0.5246107]
[1731024199058,0.7538,2901.0,2899.8,0.06894593]
[1731024201675,0.7538,2901.0,2899.7,0.5246107]
[1731024202574,0.7538,2901.0,2899.1,0.37185901]
[1731024202575,0.7538,2901.0,2899.2,0.55]
[1731024203406,0.7762,2900.6,2898.6,4.76596854]
[1731024203711,0.55,2900.3,2898.4,0.37185901]
[1731024203865,0.55,2900.1,2898.2,4.39410953]
[1731024204070,0.88641896,2900.0,2898.8,0.06897516]
[1731024205221,0.55,2899.9,2897.9,3.0689747]
[1731024205371,0.08622463,2899.8,2898.2,0.37185901]
[1731024205570,0.08622463,2899.8,2898.3,0.06897969]
[1731024206407,0.55,2899.7,2898.0,0.82558842]
[1731024206618,0.55,2899.5,2898.1,0.06898827]
[1731024206770,0.08623828,2899.4,2897.6,0.37185901]
[1731024207169,0.08623828,2899.4,2897.2,0.55]
[1731024207170,0.55,2899.3,2897.2,0.37185901]
[1731024207389,0.55,2899.3,2896.5,0.32098125]
[1731024207390,4.94410953,2899.1,2896.6,4.76596854]
[1731024207640,0.55,2898.9,2896.7,0.47659685]
[1731024207845,0.55,2898.7,2896.7,0.84845586]
[1731024208133,0.01,2899.3,2896.7,0.84845586]
[1731024208134,0.8332,2900.4,2898.6,4.39410953]
[1731024208437,0.8332,2900.4,2899.0,5.17560953]
[1731024208592,0.8332,2900.4,2898.7,0.59977567]
[1731024208799,0.8332,2900.4,2898.7,3.59977567]
[1731024208999,0.08620678,2900.3,2898.8,0.79938852]
[1731024209193,0.7753,2900.6,2898.7,0.59977567]
[1731024209402,0.88601271,2900.5,2898.7,0.59977567]
[1731024209708,0.88601271,2900.5,2898.8,0.06897017]
[1731024209912,0.88601271,2900.5,2898.9,0.36687458]
[1731024210315,0.8209,2900.4,2898.9,0.36687458]
[1731024210651,0.8209,2900.2,2899.0,0.06897587]
[1731024210799,0.8209,2900.2,2897.7,0.01]
[1731024210800,0.8209,2899.9,2897.6,0.7699]
[1731024211012,0.55,2899.5,2897.6,0.7699]
[1731024211212,0.55,2899.7,2897.4,4.39410953]
[1731024211213,0.8209,2899.3,2897.4,4.39410953]
[1731024211444,0.8299,2899.1,2897.5,1.1244284]
[1731024212157,0.8299,2899.1,2897.5,4.1244284]
[1731024212450,0.8299,2899.1,2897.5,1.05543731]
[1731024213222,0.8299,2899.1,2897.8,4.39410953]
[1731024213426,0.8299,2899.1,2897.9,0.95991714]
[1731024213922,0.8299,2899.1,2898.0,0.55]
[1731024214122,0.8299,2899.1,2898.3,3.0]
[1731024214357,0.8299,2899.1,2898.4,0.06898042]
[1731024214772,0.8299,2899.1,2898.4,0.55]
[1731024214930,0.8299,2899.1,2898.5,0.40015208]
[1731024216252,0.35985301,2900.5,2898.5,0.40015208]
[1731024216253,0.8111,2900.3,2898.8,0.55]
[1731024216747,0.35985301,2900.5,2898.7,3.0]
[1731024216748,0.8064,2900.1,2898.7,3.0]
[1731024217065,0.8064,2900.1,2898.8,0.78456303]
[1731024217207,0.8064,2900.1,2898.9,0.06896743]
[1731024217668,0.8064,2900.1,2899.0,4.39410953]
[1731024217832,0.8064,2900.1,2899.1,3.06895599]
[1731024218341,0.8064,2900.1,2898.8,0.78456303]
[1731024218710,0.8064,2900.1,2898.9,0.3784563]
[1731024220457,0.8064,2900.1,2899.0,0.06897049]
[1731024221344,0.63621311,2900.0,2898.9,0.3784563]
[1731024221512,0.801,2899.7,2897.7,1.19447299]
[1731024221712,0.88722714,2899.6,2897.7,5.58858252]
[1731024221950,0.88722714,2899.6,2897.8,0.66895773]
[1731024222134,0.88722714,2899.6,2897.8,1.00034414]
[1731024222637,0.55,2899.5,2897.8,1.00034414]
[1731024222837,0.90933675,2899.4,2897.8,1.00034414]
[1731024223041,0.90933675,2899.4,2897.9,0.53944537]
[1731024223852,0.90933675,2899.4,2898.0,0.06898876]
[1731024224663,0.90933675,2899.4,2897.9,0.53944537]
[1731024225033,0.90933675,2899.4,2897.9,0.60843414]
[1731024225666,0.8231,2899.4,2897.9,1.00880713]
[1731024225865,0.8231,2899.4,2898.2,3.0]
[1731024226075,0.8231,2899.4,2898.3,0.06898253]
[1731024226427,0.8231,2899.4,2898.2,3.0]
[1731024226886,0.8231,2899.4,2898.7,3.0]
[1731024227229,0.8231,2899.4,2898.8,0.06897255]
[1731024227481,0.8231,2899.4,2898.9,0.30689725]
[1731024227841,0.8094,2901.1,2899.1,3.816]
[1731024228048,0.8094,2900.9,2899.2,0.06894929]
[1731024228667,0.4297567,2901.5,2899.1,3.816]
[1731024228668,0.89558663,2900.8,2899.1,3.0]
[1731024228875,0.89558663,2900.8,2899.2,0.73941095]
[1731024229032,0.89558663,2900.8,2899.2,0.80836691]
[1731024229236,0.89558663,2900.8,2899.2,0.73941095]
[1731024229532,0.89558663,2900.8,2899.3,0.06895596]
[1731024229828,0.89558663,2900.8,2899.3,0.06895595]
[1731024230280,0.89558663,2900.8,2898.9,0.30689725]
[1731024230281,0.55,2900.5,2898.9,0.30689725]
[1731024230580,0.8094,2900.0,2898.4,0.40037299]
[1731024230780,0.89561721,2899.9,2898.4,0.40037299]
[1731024231072,0.89561721,2899.9,2898.4,1.29595999]
[1731024231289,0.89561721,2899.9,2898.2,4.39410953]
[1731024231427,0.7704,2899.7,2898.3,0.58415271]
[1731024231783,0.7704,2899.7,2898.3,3.58415271]
[1731024232350,0.7704,2899.7,2898.3,0.58415271]
[1731024232534,0.7704,2899.5,2897.9,1.45817352]
[1731024232739,0.7704,2899.3,2898.0,0.06898565]
[1731024232972,0.7704,2899.3,2898.0,0.46935864]
[1731024233276,0.7704,2899.3,2898.0,1.44741756]
[1731024233480,0.7704,2899.3,2897.9,1.04704457]
[1731024233693,0.7704,2899.3,2898.0,0.54411541]
[1731024234180,0.818,2899.1,2898.0,0.54411541]
[1731024234343,0.818,2898.9,2897.8,1.04704457]
[1731024234547,0.84835108,2898.8,2897.9,0.06900086]
[1731024234744,0.7621,2898.8,2897.9,0.06900086]
[1731024235389,0.7621,2898.8,2897.2,0.0690009]
[1731024235693,0.7621,2898.8,2897.7,0.0690009]
[1731024236486,0.7621,2898.8,2897.4,4.39410953]
[1731024236707,0.7621,2898.8,2897.9,2.9275]
[1731024236985,0.7621,2898.8,2898.0,0.06899132]
[1731024237190,0.7621,2898.8,2897.9,2.9275]
[1731024237552,0.7621,2898.8,2897.7,0.40037299]
[1731024237553,0.7621,2898.8,2897.5,0.47944825]
[1731024237952,0.7621,2898.8,2898.1,1.059696]
[1731024238357,0.7621,2898.8,2898.2,1.12868865]
[1731024238557,0.7621,2898.8,2898.5,1.059696]
[1731024238764,0.7683,2899.7,2898.6,0.06898564]
[1731024238986,0.7683,2899.7,2898.8,1.059696]
[1731024239189,0.7683,2899.7,2898.9,0.62312877]
[1731024239599,0.7683,2899.7,2898.9,1.68282477]
[1731024239961,0.7683,2899.7,2899.1,3.0]
[1731024240296,0.7683,2899.7,2899.1,4.059696]
[1731024240480,0.7683,2899.7,2899.2,1.12865855]
[1731024240663,0.8332,2900.4,2899.3,0.55415866]
[1731024240857,0.8332,2900.4,2899.4,0.06895498]
[1731024241060,0.8332,2900.4,2899.3,1.61385466]
[1731024241266,0.8243,2900.2,2899.0,4.059696]
[1731024241459,0.8243,2900.2,2898.9,4.61385609]
[1731024241693,0.8243,2900.2,2899.1,3.0]
[1731024241892,0.8243,2900.2,2899.2,1.87496043]
[1731024242161,0.8243,2900.2,2899.2,0.81526443]
[1731024242357,0.8243,2900.2,2899.2,1.87496043]
[1731024242571,0.8243,2900.2,2899.4,1.059696]
[1731024242971,0.8243,2900.2,2899.5,3.06895381]
[1731024243303,0.8172,2900.8,2899.9,3.0]
[1731024243500,0.8172,2900.8,2900.0,0.06894134]
[1731024243702,0.8172,2900.8,2900.2,4.39410953]
[1731024244014,0.7995,2901.9,2900.4,1.059696]
[1731024244190,0.7995,2901.9,2900.6,4.39410953]
[1731024244366,0.7995,2901.9,2900.7,3.0]
[1731024244799,0.7995,2901.9,2900.7,4.059696]
[1731024245012,0.7995,2901.9,2900.8,0.98667335]
[1731024245214,0.7995,2901.9,2901.1,3.0]
[1731024245519,1.14829587,2902.3,2901.5,3.0]
[1731024245678,0.7887,2902.3,2901.5,3.73941095]
[1731024245878,0.7887,2902.3,2901.5,3.0]
[1731024246115,0.7887,2902.3,2901.1,4.059696]
[1731024246320,0.7887,2902.3,2901.1,3.0]
[1731024247107,0.7887,2902.3,2901.2,0.06890813]
[1731024247290,0.7887,2902.3,2901.2,0.8152099]
[1731024247495,0.7887,2902.3,2901.5,3.0]
[1731024247724,0.08613155,2903.6,2901.8,4.39410953]
[1731024247725,0.7923,2903.5,2901.8,4.39410953]
[1731024248014,0.7923,2903.5,2901.9,3.06889077]
[1731024248376,0.7923,2903.5,2901.9,3.0]
[1731024248578,0.7923,2903.5,2901.9,3.85853825]
[1731024248931,0.7923,2903.5,2902.3,3.0]
[1731024249134,0.7923,2903.5,2902.0,0.06888659]
[1731024249135,0.7923,2903.5,2902.7,3.0]
[1731024249337,0.7923,2903.5,2902.8,0.06887959]
[1731024249626,0.7923,2903.5,2902.9,0.06886937]
[1731024249780,0.7923,2903.5,2902.7,3.0]
[1731024249981,0.7923,2903.5,2902.7,3.81850095]
[1731024250482,0.7923,2903.5,2902.8,0.06887686]
[1731024250882,0.7923,2903.5,2902.3,1.19127299]
[1731024251112,0.7923,2903.5,2902.8,3.0]
[1731024251432,0.7923,2903.5,2902.7,3.0]
[1731024252391,0.7923,2903.5,2902.4,0.55]
[1731024252931,0.7923,2903.5,2902.3,0.7909]
[1731024253488,0.7923,2903.5,2902.3,1.30940095]
[1731024253901,0.7923,2903.5,2901.9,0.45260332]
[1731024254105,0.7923,2903.5,2901.8,4.39410953]
[1731024254430,0.7923,2903.5,2901.8,4.84671285]
[1731024255002,0.7923,2903.5,2901.2,0.75630177]
[1731024255003,0.7923,2903.5,2902.2,5.15820953]
[1731024255231,0.7923,2903.5,2902.6,4.39410953]
[1731024255392,0.7923,2903.5,2902.7,0.43941095]
[1731024255588,0.7923,2903.5,2902.7,0.89201427]
[1731024255788,0.7854,2905.0,2903.1,3.0]
[1731024256028,0.05165943,2905.1,2903.2,0.52146019]
[1731024256228,0.8259,2905.0,2903.5,3.0]
[1731024256600,0.05165943,2905.1,2903.1,3.0]
[1731024256601,0.8259,2904.8,2903.1,3.0]
[1731024256800,0.8259,2904.6,2903.1,3.0]
[1731024257008,0.8259,2904.6,2903.1,3.78467128]
[1731024258617,0.8259,2904.6,2903.1,4.19580023]
[1731024258802,0.8259,2904.6,2903.2,0.06885845]
[1731024259305,0.8259,2904.6,2903.3,0.55]
[1731024259637,0.8259,2904.6,2903.6,0.55]
[1731024259791,0.8259,2904.6,2903.9,3.0]
[1731024260000,0.83405943,2905.1,2904.3,3.0]
[1731024260195,0.83405943,2905.1,2904.5,0.55]
[1731024261041,0.83405943,2905.1,2904.4,0.55]
[1731024261331,0.83405943,2905.1,2904.3,3.0]
[1731024261332,0.83405943,2905.1,2904.5,0.355]
[1731024261492,0.83405943,2905.1,2904.6,0.06883664]
[1731024261699,0.086058,2906.5,2904.7,3.0]
[1731024261700,0.8237,2905.5,2904.7,3.0]
[1731024261926,0.8237,2905.5,2904.8,0.06882067]
[1731024262138,0.1361345,2906.7,2904.8,0.06882067]
[1731024262139,0.8237,2906.6,2904.9,0.34895907]
[1731024262348,0.8237,2906.6,2905.0,0.06881693]
[1731024262510,0.8237,2906.6,2904.9,0.34895907]
[1731024264105,0.7558,2906.4,2904.9,0.34895907]
[1731024264291,0.7558,2906.4,2904.4,0.42076999]
[1731024264292,0.7558,2906.4,2904.5,0.55]
[1731024264717,0.7725,2906.2,2904.4,0.42076999]
[1731024264956,0.7725,2906.2,2904.5,0.41090232]
[1731024265235,0.7725,2906.2,2904.6,4.81487952]
[1731024265751,0.7725,2906.2,2904.5,0.342077]
[1731024266032,0.7725,2906.0,2904.5,0.44493666]
[1731024267129,3.08603174,2906.5,2904.5,0.44493666]
[1731024267130,0.55,2905.9,2904.5,0.44493666]
[1731024267337,0.7858,2905.8,2903.9,0.44493666]
[1731024267632,0.63603183,2905.9,2904.0,0.60177751]
[1731024267633,0.87184214,2905.7,2904.0,0.60177751]
[1731024267833,0.7858,2905.7,2904.1,0.06883634]
[1731024268050,0.7858,2905.7,2904.1,0.92490195]
[1731024268531,0.070971,2905.6,2904.1,0.92490195]
[1731024268730,0.7858,2905.7,2904.1,0.85606561]
[1731024269032,0.856771,2905.6,2904.1,0.85606561]
[1731024269240,0.856771,2905.6,2904.0,0.67061577]
[1731024269241,0.856771,2905.6,2904.0,0.60177751]
[1731024269397,0.856771,2905.6,2903.8,0.44493666]
[1731024269921,0.856771,2905.6,2903.9,0.47996914]
[1731024270121,0.856771,2905.6,2904.0,0.44493666]
[1731024270936,0.856771,2905.6,2902.1,1.60948628]
[1731024270937,0.791,2905.4,2903.1,3.0]
[1731024271134,0.791,2905.2,2903.4,0.44493666]
[1731024271442,0.01,2905.4,2903.4,0.44493666]
[1731024271443,0.791,2905.0,2903.4,0.44493666]
[1731024271931,0.791,2905.0,2903.4,0.85606561]
[1731024272351,0.791,2905.0,2903.9,3.0]
[1731024272655,1.34204867,2906.0,2904.3,3.55]
[1731024272656,0.7932,2905.9,2904.3,3.55]
[1731024272936,0.05163772,2906.0,2904.0,1.66431546]
[1731024272937,0.7932,2904.9,2904.0,0.85606561]
[1731024273246,0.7932,2904.9,2904.1,0.38560656]
[1731024273545,0.7932,2904.9,2904.2,0.47997068]
[1731024273711,0.8032224,2904.9,2904.2,0.92490734]
[1731024274231,0.8032224,2904.9,2904.2,0.85606561]
[1731024274734,0.8032224,2904.9,2904.1,0.38560656]
[1731024274966,0.8032224,2904.9,2903.6,1.65928761]
[1731024275264,0.8032224,2904.9,2903.6,0.85606561]
[1731024275427,0.8032224,2904.9,2903.7,0.44493666]
[1731024275629,0.8032224,2904.9,2903.7,0.85606561]
[1731024276780,0.8032224,2904.9,2903.3,1.376747]
[1731024277081,0.8032224,2904.9,2903.4,1.14841478]
[1731024277378,0.788,2904.6,2903.5,0.44493666]
[1731024277579,0.788,2904.6,2903.6,0.47998183]
[1731024277882,0.7980224,2904.6,2903.7,0.44493666]
[1731024278187,0.7980224,2904.6,2903.8,0.47998166]
[1731024278750,0.7980224,2904.6,2903.8,0.41112895]
[1731024278947,0.7980224,2904.6,2903.7,0.44493666]
[1731024279858,0.7980224,2904.6,2903.7,0.85606561]
[1731024281964,0.7980224,2904.6,2904.1,4.39410953]
[1731024282179,0.0100224,2904.6,2904.3,0.55]
[1731024282503,0.0100224,2904.6,2904.5,0.55]
[1731024283790,0.8269,2905.8,2904.6,3.55]
[1731024283955,0.8269,2905.8,2904.7,0.61882012]
[1731024284155,0.8269,2905.8,2904.9,0.55]
[1731024285599,0.8269,2905.8,2904.9,4.94410953]
[1731024285759,0.7546,2906.1,2905.4,3.0]
[1731024285964,0.7546,2906.1,2905.5,0.61881049]
[1731024286234,0.1388538,2907.1,2905.9,1.3807]
[1731024286498,0.1388538,2907.1,2906.0,3.43807]
[1731024286861,0.1388538,2907.1,2904.9,1.75777259]
[1731024286862,0.7517,2907.0,2905.2,3.7577]
[1731024287063,0.822671,2906.9,2905.1,4.39410953]
[1731024287409,0.822671,2906.9,2904.8,0.44748857]
[1731024287717,0.7517,2906.9,2905.1,4.39410953]
[1731024287862,0.8291,2906.7,2905.1,4.39410953]
[1731024288389,0.8291,2906.7,2905.1,4.83904619]
[1731024288866,0.8291,2906.7,2905.2,0.7882]
[1731024289204,0.8291,2906.7,2905.4,0.55]
[1731024289877,0.8291,2906.7,2905.3,0.51823095]
[1731024290080,0.8156,2906.5,2904.8,0.44493666]
[1731024290403,0.8156,2906.5,2904.6,1.03660376]
[1731024290404,0.8156,2906.4,2905.0,0.06881802]
[1731024290767,0.8156,2906.4,2904.9,0.97359014]
[1731024291165,0.8156,2906.4,2905.0,0.06881662]
[1731024291409,0.8156,2906.4,2905.1,0.20790105]
[1731024292214,0.8156,2906.4,2905.2,0.0688183]
[1731024292420,0.8156,2906.4,2904.5,1.48154042]
[1731024292706,0.7771,2905.9,2904.2,0.43941095]
[1731024292908,0.848071,2905.8,2903.9,1.03660376]
[1731024293092,0.848071,2905.8,2903.8,1.03660376]
[1731024293294,0.070971,2905.8,2903.9,1.03660376]
[1731024293467,0.7725,2905.6,2904.1,1.84820376]
[1731024293666,0.7725,2905.6,2904.2,0.44493666]
[1731024294104,0.7725,2905.6,2904.3,0.06883204]
[1731024294308,0.7725,2905.6,2904.3,0.5137687]
[1731024294666,0.7725,2905.6,2904.3,0.44493666]
[1731024294873,0.7725,2905.6,2904.4,0.44815404]
[1731024295177,0.7725,2905.6,2904.5,0.55]
[1731024295395,0.7725,2905.6,2904.7,1.58660376]
[1731024295710,0.7725,2905.6,2904.8,4.55036415]
[1731024296207,0.7725,2905.6,2904.8,1.55036415]
[1731024296404,0.7725,2905.6,2904.9,0.51003641]
[1731024296609,0.7725,2905.6,2904.9,4.54664017]
[1731024296805,0.7725,2905.6,2905.0,0.06882523]
[1731024297416,0.7725,2905.6,2904.9,0.51003641]
[1731024297620,0.7725,2905.6,2904.5,1.03660376]
[1731024297822,0.7725,2905.6,2904.5,0.33118328]
[1731024298128,0.7725,2905.6,2904.6,0.06883528]
[1731024298267,0.7725,2905.6,2904.3,0.44493666]
[1731024298469,0.7725,2905.6,2904.4,0.06883529]
[1731024298708,0.7725,2905.6,2904.4,0.51377195]
[1731024298913,0.7725,2905.6,2904.5,0.93572481]
[1731024299208,0.7725,2905.6,2904.6,0.06882997]
[1731024300005,0.7725,2905.6,2904.7,5.38904619]
[1731024300174,0.7725,2905.6,2905.0,1.03660376]
[1731024300570,0.7725,2905.6,2904.9,1.03660376]
[1731024300785,0.7725,2905.6,2905.0,1.6473029]
[1731024300988,0.7725,2905.6,2905.0,4.57847797]
[1731024301321,0.7725,2905.6,2905.0,0.06882732]
[1731024302100,0.7725,2905.6,2904.9,0.44493666]
[1731024302507,0.7725,2905.6,2905.0,0.55]
[1731024302711,0.7725,2905.6,2905.0,3.0]
[1731024302922,0.7725,2905.6,2904.9,0.44493666]
[1731024303827,0.7725,2905.6,2904.5,0.49078815]
[1731024304025,0.7725,2905.6,2904.3,0.44493666]
[1731024304231,0.7725,2905.6,2904.5,0.44493666]
[1731024304412,0.7725,2905.6,2904.6,0.0688362]
[1731024304617,0.7725,2905.6,2904.6,0.51377286]
[1731024304819,0.7725,2905.6,2904.7,4.83904619]
[1731024304987,0.7725,2905.6,2904.8,3.49078824]
[1731024305187,0.7725,2905.6,2904.8,0.49078824]
[1731024305392,0.7725,2905.6,2904.7,0.44493666]
[1731024305725,0.7725,2905.6,2904.4,4.03660376]
[1731024305726,0.7725,2905.6,2904.4,0.44493666]
[1731024306298,0.7725,2905.6,2904.0,0.28636788]
[1731024306499,0.8222,2905.4,2903.9,0.40183638]
[1731024306831,0.8222,2905.4,2904.0,0.44493666]
[1731024306989,0.8222,2905.4,2904.1,0.06884341]
[1731024307189,0.8222,2905.4,2904.1,0.44493666]
[1731024307603,0.8222,2905.4,2904.2,0.06884295]
[1731024307818,0.8222,2905.4,2904.3,0.44493666]
[1731024308219,0.8222,2905.4,2903.8,0.38213855]
[1731024308220,0.894871,2905.3,2903.9,0.4018011]
[1731024308422,0.894871,2905.3,2904.0,0.06884938]
[1731024308731,0.894871,2905.3,2904.0,0.51378604]
[1731024310229,0.894871,2905.3,2903.5,4.39410953]
[1731024310230,0.55,2905.2,2903.5,0.44493666]
[1731024310434,0.7682,2904.9,2903.3,0.44493666]
[1731024310735,0.7682,2904.7,2903.4,0.91595944]
[1731024311025,0.7682,2904.7,2903.4,0.51379696]
[1731024311414,0.7682,2904.7,2903.4,0.91595944]
[1731024311725,0.7682,2904.7,2903.5,0.44493666]
[1731024311899,0.7682,2904.7,2903.6,0.06886032]
[1731024312106,0.7682,2904.7,2903.5,0.44493666]
[1731024312305,0.8144,2904.5,2903.2,0.55]
[1731024312626,0.8144,2904.3,2903.2,0.55]
[1731024312834,0.8144,2904.3,2903.3,0.06886627]
[1731024313824,0.8144,2904.3,2903.4,0.44493666]
[1731024314026,0.8144,2904.3,2903.5,0.06886195]
[1731024314598,0.8144,2904.3,2903.4,0.44493666]
[1731024315988,0.8144,2904.3,2903.4,0.82964657]
[1731024316210,0.8144,2904.3,2902.9,0.8144]
[1731024316435,0.8144,2904.3,2902.7,0.40216248]
[1731024316738,0.8144,2904.3,2902.7,1.377136]
[1731024316920,0.8144,2904.3,2902.6,4.09398355]
[1731024316921,0.882171,2904.2,2902.6,4.09398355]
[1731024317124,0.882171,2904.2,2902.7,0.40939836]
[1731024317490,0.882171,2904.2,2902.7,0.81156084]
[1731024317688,0.8297,2904.0,2902.8,0.44493666]
[1731024317933,0.8297,2903.8,2902.8,1.1865758]
[1731024318135,0.8297,2903.8,2902.8,1.11770246]
[1731024318295,0.620971,2903.7,2902.3,0.40216248]
[1731024318628,0.7631,2903.6,2902.2,0.44493666]
[1731024318860,0.7631,2903.4,2902.2,0.44493666]
[1731024318991,0.836371,2903.3,2902.2,0.44493666]
[1731024320231,0.836371,2903.3,2902.0,0.25090907]
[1731024320533,0.7654,2903.3,2902.3,0.06889213]
[1731024320893,0.7654,2903.3,2902.3,0.51382879]
[1731024321090,0.7654,2903.3,2902.4,0.90571789]
[1731024321311,0.7654,2903.3,2902.4,1.15662696]
[1731024321652,0.7654,2903.3,2902.4,0.7116903]
[1731024324596,0.871471,2902.5,2901.3,0.44493666]
[1731024324821,0.55,2902.4,2901.1,0.25070014]
[1731024325038,0.869871,2902.3,2900.9,0.44493666]
[1731024325249,0.55,2902.2,2900.9,0.44493666]
[1731024325396,0.869871,2902.1,2900.9,0.44493666]
[1731024325735,0.55,2901.6,2900.5,0.25070014]
[1731024325896,0.55,2901.6,2900.3,0.44493666]
[1731024325897,0.7989,2901.3,2900.3,0.44493666]
[1731024326100,0.070971,2901.5,2899.9,0.40092388]
[1731024326101,0.869871,2901.2,2899.9,0.44493666]
[1731024326742,0.7989,2901.2,2900.0,0.06894923]
[1731024326942,0.7989,2901.2,2900.1,0.44493666]
[1731024327448,0.7989,2901.2,2900.2,0.06894022]
[1731024327644,0.7989,2901.2,2900.2,4.54506232]
[1731024327844,0.7989,2901.2,2900.3,0.72990808]
[1731024328043,0.7989,2901.2,2900.4,0.06893716]
[1731024328201,0.7989,2901.2,2900.4,0.25036532]
[1731024329124,0.7989,2901.2,2900.5,0.0689379]
[1731024330039,0.7989,2901.2,2900.3,4.24684276]
[1731024330231,0.7989,2901.2,2900.4,1.12371073]
[1731024331644,0.7989,2901.2,2900.7,3.0]
[1731024331856,0.7989,2901.2,2900.8,0.3185865]
[1731024332350,0.8073,2902.4,2900.8,0.3185865]
[1731024332511,0.8073,2901.6,2901.1,3.0]
[1731024332841,0.8073,2901.6,2901.2,0.31857672]
[1731024333154,0.8073,2901.6,2901.2,0.24965575]
[1731024333840,0.8073,2901.6,2901.3,0.06892087]
[1731024334616,0.070971,2902.9,2901.3,0.06892087]
[1731024334819,4.15378513,2903.4,2901.3,0.06892087]
[1731024334820,0.85034054,2902.8,2901.5,3.0]
[1731024335016,0.7598,2902.8,2901.9,3.0]
[1731024335327,0.7598,2902.8,2901.0,0.8234]
[1731024335328,0.7598,2902.8,2902.0,0.24965575]
[1731024335649,0.7598,2902.8,2901.5,3.24965575]
[1731024335808,0.7598,2902.8,2901.6,0.98401968]
[1731024336322,0.7598,2902.8,2901.7,0.24965575]
[1731024336527,0.7598,2902.8,2901.8,0.24965575]
[1731024336728,0.7598,2902.8,2901.7,0.24965575]
[1731024337026,0.7598,2902.8,2901.9,3.0]
[1731024337351,0.7598,2902.8,2902.2,4.09398355]
[1731024337658,0.7598,2902.8,2902.3,3.3185507]
[1731024337806,0.7598,2902.8,2902.3,3.06889495]
[1731024338011,0.7916,2903.2,2902.7,3.0]
[1731024338347,0.7916,2903.2,2902.8,0.31889582]
[1731024338858,0.7916,2903.2,2902.9,0.25001342]
[1731024339059,0.7916,2903.2,2902.4,0.25001342]
[1731024339269,0.7916,2903.2,2902.5,0.25001342]
[1731024339561,0.7916,2903.2,2902.6,0.31890012]
[1731024339883,0.7916,2903.2,2902.6,0.0688867]
[1731024340222,0.7916,2903.2,2902.4,0.25030571]
[1731024340425,0.7916,2903.2,2902.5,0.57533628]
[1731024340727,0.7916,2903.2,2901.9,1.26770753]
[1731024340728,0.7916,2903.2,2902.4,0.25030571]
[1731024340936,0.7916,2903.2,2902.0,3.0]
[1731024340937,0.7916,2903.2,2902.5,0.25030571]
[1731024341160,0.7916,2903.2,2902.3,4.09398355]
[1731024341161,0.7916,2903.2,2902.8,3.0]
[1731024341442,0.7916,2903.2,2902.9,0.25030571]
[1731024341616,0.7916,2903.2,2902.8,3.0]
[1731024341617,0.7916,2903.2,2903.0,0.64421945]
[1731024341819,0.7874,2904.6,2903.1,0.25030571]
[1731024342018,0.7643,2904.4,2903.2,0.31918006]
[1731024342270,0.7643,2904.3,2903.3,0.25030571]
[1731024342484,0.84969812,2904.3,2903.4,0.65109178]
[1731024342622,0.7643,2904.3,2903.5,0.25030571]
[1731024342819,0.7643,2904.3,2903.6,3.31916698]
[1731024343037,0.7643,2904.3,2903.7,0.74131505]
[1731024343239,0.7643,2904.3,2903.8,0.06885792]
[1731024343787,0.7643,2904.3,2903.7,0.74131505]
[1731024344265,0.7643,2904.3,2903.8,0.06885723]
[1731024345658,0.8055,2904.6,2903.9,4.09398355]
[1731024345827,0.8055,2905.5,2904.0,3.48513112]
[1731024346029,0.8055,2905.5,2904.0,3.93003865]
[1731024346030,0.15677908,2905.4,2904.0,3.93003865]
[1731024346397,0.15677908,2905.4,2904.2,0.7768]
[1731024346398,0.070971,2905.4,2904.2,0.7768]
[1731024346690,0.8055,2905.5,2904.5,3.0]
[1731024346847,0.8055,2905.5,2904.4,3.0]
[1731024347049,0.8055,2905.5,2904.5,0.06883477]
[1731024347287,0.8055,2905.5,2904.6,0.30688348]
[1731024347596,0.8055,2905.5,2904.8,3.0]
[1731024349043,0.8055,2905.5,2904.4,3.0]
[1731024349994,0.8055,2905.5,2904.0,0.86119161]
[1731024350304,0.01,2905.9,2904.1,0.44490753]
[1731024350305,0.8199,2905.3,2904.1,0.44490753]
[1731024350453,0.8199,2905.3,2904.1,0.94042505]
[1731024350972,0.8199,2905.3,2904.2,0.06884411]
[1731024351152,0.8199,2905.3,2904.1,0.94042505]
[1731024351358,0.8199,2905.3,2904.2,0.51375451]
[1731024351562,0.01,2904.6,2902.8,1.03660376]
[1731024351874,0.8199,2904.3,2902.9,4.16080182]
[1731024352199,0.8199,2904.3,2903.0,0.7631]
[1731024352399,0.8199,2904.3,2903.1,0.06678413]
[1731024352400,0.08623256,2904.2,2903.1,0.06678413]
[1731024352600,0.8199,2904.3,2903.1,0.06678413]